fUST/lending_fUST_20250127
["ID","MTS","AMOUNT","RATE_DAILY","PERIOD"]
[350515015,1737939046400,-500.0,0.00016575,2]
[350515017,1737939046410,-1443.07,0.00016575,2]
[350515019,1737939046419,-157.28,0.00016575,2]
[350515021,1737939046428,-500.0,0.00016575,2]
[350515023,1737939046438,-500.0,0.00016575,2]
[350515025,1737939046448,-500.0,0.00016575,2]
[350515027,1737939046462,-500.0,0.00016575,2]
[350515029,1737939046471,-168.33,0.00016575,2]
[350515031,1737939046480,-500.0,0.00016575,2]
[350515033,1737939046493,-500.0,0.00016575,2]
[350515035,1737939046504,-500.0,0.00016575,2]
[350515037,1737939046513,-324.34,0.00016575,2]
[350515039,1737939046522,-500.0,0.00016575,2]
[350515041,1737939046532,-554.85,0.00016575,2]
[350515043,1737939046543,-500.0,0.00016575,2]
[350515045,1737939046553,-500.0,0.00016575,2]
[350515047,1737939046563,-500.0,0.00016575,2]
[350515049,1737939046572,-500.0,0.00016575,2]
[350515051,1737939046581,-271.51,0.00016575,2]
[350515053,1737939046591,-500.0,0.00016575,2]
[350515055,1737939046600,-316.69,0.00016575,2]
[350515057,1737939046609,-500.0,0.00016575,2]
[350515059,1737939046618,-500.0,0.00016575,2]
[350515061,1737939046628,-500.0,0.00016575,2]
[350515063,1737939046637,-1406.52,0.00016575,2]
[350515065,1737939046646,-157.13,0.00016575,2]
[350515067,1737939046655,-240.81,0.00016575,2]
[350515069,1737939046664,-500.0,0.00016575,2]
[350515071,1737939046673,-348.4,0.00016575,2]
[350515073,1737939046682,-500.0,0.00016575,2]
[350515075,1737939046691,-375.84,0.00016575,2]
[350515077,1737939046700,-500.0,0.00016575,2]
[350515079,1737939046709,-184.05,0.00016575,2]
[350515081,1737939046719,-515.25,0.00016575,2]
[350515083,1737939046729,-500.0,0.00016575,2]
[350515085,1737939046740,-500.0,0.00016575,2]
[350515087,1737939046750,-638.63,0.00016575,2]
[350515089,1737939046759,-500.0,0.00016575,2]
[350515091,1737939046768,-500.0,0.00016575,2]
[350515093,1737939046777,-500.0,0.00016575,2]
[350515095,1737939046786,-2447.24,0.00016709,2]
[350515097,1737939046795,-500.0,0.0001671,2]
[350515099,1737939046804,-500.0,0.0001671,2]
[350515101,1737939046814,-500.0,0.0001671,2]
[350515103,1737939046823,-500.0,0.0001671,2]
[350515105,1737939046832,-500.0,0.0001671,2]
[350515107,1737939046841,-500.0,0.0001671,2]
[350515109,1737939046850,-500.0,0.0001671,2]
[350515111,1737939046860,-500.0,0.0001671,2]
[350515113,1737939046869,-500.0,0.00016711,2]
[350515115,1737939046878,-500.0,0.00016711,2]
[350515116,1737939046888,-500.0,0.00016711,2]
[350515117,1737939046897,-500.0,0.00016711,2]
[350515118,1737939046906,-2447.24,0.00016711,2]
[350515119,1737939046916,-152.87189063,0.00016712,2]
[350515120,1737939046926,-500.0,0.00016712,2]
[350515121,1737939046935,-550.01,0.00016712,2]
[350515122,1737939046944,-326.64,0.00016712,2]
[350515123,1737939046954,-516.05,0.00016712,2]
[350515124,1737939046963,-206.26,0.00016712,2]
[350515125,1737939046972,-500.0,0.00016712,2]
[350515126,1737939046982,-219.88,0.00016712,2]
[350515127,1737939046994,-234.84,0.00016712,2]
[350515128,1737939047003,-469.92,0.00016712,2]
[350515129,1737939047012,-328.35,0.00016712,2]
[350515130,1737939047022,-500.0,0.00016712,2]
[350515131,1737939047031,-500.0,0.00016712,2]
[350515132,1737939047040,-336.29,0.00016712,2]
[350515133,1737939047050,-1953.31,0.00016712,2]
[350515134,1737939047059,-421.31,0.00016712,2]
[350515135,1737939047068,-500.0,0.00016712,2]
[350515136,1737939047078,-293.81,0.00016712,2]
[350515137,1737939047087,-549.71,0.00016712,2]
[350515138,1737939047097,-529.72,0.00016712,2]
[350515139,1737939047106,-592.82,0.00016712,2]
[350515140,1737939047115,-500.0,0.00016712,2]
[350515141,1737939047124,-817.04,0.00016712,2]
[350515142,1737939047134,-500.0,0.00016712,2]
[350515143,1737939047143,-4365.69,0.00016712,2]
[350515144,1737939047151,-500.0,0.00016712,2]
[350515145,1737939047161,-500.0,0.00016712,2]
[350515146,1737939047171,-500.0,0.00016712,2]
[350515147,1737939047181,-1443.07,0.00016712,2]
[350515148,1737939047190,-500.0,0.00016712,2]
[350515149,1737939047200,-500.0,0.00016712,2]
[350515150,1737939047209,-432.26,0.00016712,2]
[350515151,1737939047219,-500.0,0.00016712,2]
[350515152,1737939047228,-500.0,0.00016712,2]
[350515153,1737939047240,-623.37,0.00016712,2]
[350515154,1737939047249,-608.18,0.00016712,2]
[350515155,1737939047259,-500.0,0.00016712,2]
[350515156,1737939047269,-554.85,0.00016712,2]
[350515157,1737939047279,-538.93,0.00016712,2]
[350515158,1737939047289,-500.0,0.00016712,2]
[350515159,1737939047298,-500.0,0.00016712,2]
[350515160,1737939047308,-500.0,0.00016712,2]
[350515161,1737939047318,-500.0,0.00016712,2]
[350515162,1737939047328,-500.0,0.00016712,2]
[350515163,1737939047338,-1406.52,0.00016712,2]
[350515164,1737939047350,-500.0,0.00016712,2]
[350515165,1737939047360,-500.0,0.00016712,2]
[350515166,1737939047370,-536.69,0.00016712,2]
[350515167,1737939047380,-500.0,0.00016712,2]
[350515169,1737939047390,-151.0,0.000168,2]
[350515171,1737939047399,-500.0,0.00016848,2]
[350515173,1737939047409,-500.0,0.00016848,2]
[350515175,1737939047419,-500.0,0.00016848,2]
[350515177,1737939047428,-472.37874223,0.00016848,2]
[350515179,1737939047438,-2447.24,0.00016848,2]
[350515181,1737939047448,-2447.24,0.00016848,2]
[350515183,1737939047457,-2447.24,0.00016848,2]
[350515185,1737939047471,-2447.24,0.00016848,2]
[350515187,1737939047481,-2447.34000003,0.00016848,2]
[350515189,1737939047498,-252.24,0.00016849,2]
[350515191,1737939047508,-500.0,0.00016849,2]
[350515193,1737939047518,-500.0,0.00016849,2]
[350515194,1737939047528,-1953.31,0.00016849,2]
[350515196,1737939047538,-562.41,0.00016849,2]
[350515198,1737939047548,-592.82,0.00016849,2]
[350515200,1737939047558,-500.0,0.00016849,2]
[350515202,1737939047568,-817.04,0.00016849,2]
[350515204,1737939047578,-180.52,0.00016849,2]
[350515206,1737939047589,-4365.69,0.00016849,2]
[350515208,1737939047599,-500.0,0.00016849,2]
[350515210,1737939047609,-500.0,0.00016849,2]
[350515212,1737939047619,-500.0,0.00016849,2]
[350515214,1737939047629,-1443.07,0.00016849,2]
[350515217,1737939047639,-500.0,0.00016849,2]
[350515219,1737939047649,-500.0,0.00016849,2]
[350515221,1737939047659,-259.03,0.00016849,2]
[350515223,1737939047669,-500.0,0.00016849,2]
[350515225,1737939047679,-500.0,0.00016849,2]
[350515227,1737939047689,-554.85,0.00016849,2]
[350515229,1737939047700,-500.0,0.00016849,2]
[350515231,1737939047709,-521.63,0.00016849,2]
[350515233,1737939047719,-500.0,0.00016849,2]
[350515235,1737939047729,-500.0,0.00016849,2]
[350515237,1737939047742,-500.0,0.00016849,2]
[350515239,1737939047751,-1406.52,0.00016849,2]
[350515241,1737939047761,-500.0,0.00016849,2]
[350515243,1737939047770,-500.0,0.00016849,2]
[350515245,1737939047779,-461.0,0.00016849,2]
[350515247,1737939047789,-500.0,0.00016985,2]
[350515249,1737939047798,-181.48,0.00016986,2]
[350515251,1737939047807,-500.0,0.00016986,2]
[350515253,1737939047816,-1953.31,0.00016986,2]
[350515255,1737939047826,-592.82,0.00016986,2]
[350515257,1737939047835,-500.0,0.00016986,2]
[350515259,1737939047845,-817.04,0.00016986,2]
[350515261,1737939047854,-4365.69,0.00016986,2]
[350515262,1737939047863,-500.0,0.00016986,2]
[350515263,1737939047873,-500.0,0.00016986,2]
[350515264,1737939047882,-173.38,0.00016986,2]
[350515265,1737939047891,-1443.07,0.00016986,2]
[350515266,1737939047901,-500.0,0.00016986,2]
[350515267,1737939047911,-348.39,0.00016986,2]
[350515268,1737939047920,-500.0,0.00016986,2]
[350515269,1737939047929,-500.0,0.00016986,2]
[350515270,1737939047939,-554.85,0.00016986,2]
[350515271,1737939047948,-500.0,0.00016986,2]
[350515272,1737939047958,-500.0,0.00016986,2]
[350515273,1737939047967,-500.0,0.00016986,2]
[350515274,1737939047976,-500.0,0.00016986,2]
[350515275,1737939047987,-1406.52,0.00016986,2]
[350515276,1737939047996,-500.0,0.00016986,2]
[350515277,1737939048005,-397.73,0.00016986,2]
[350515278,1737939048014,-8017.69,0.00017,2]
[350515280,1737939048023,-151.0,0.000171,2]
[350515282,1737939048033,-500.0,0.00017122,2]
[350515284,1737939048043,-500.0,0.00017122,2]
[350515286,1737939048053,-500.0,0.00017122,2]
[350515287,1737939048062,-302.49,0.00017123,2]
[350515289,1737939048072,-1953.31,0.00017123,2]
[350515292,1737939048082,-592.82,0.00017123,2]
[350515293,1737939048091,-500.0,0.00017123,2]
[350515295,1737939048100,-817.04,0.00017123,2]
[350515297,1737939048110,-4365.69,0.00017123,2]
[350515300,1737939048121,-500.0,0.00017123,2]
[350515301,1737939048131,-503.57998207,0.00017123,2]
[350515304,1737939048142,-1443.07,0.00017123,2]
[350515305,1737939048151,-500.0,0.00017123,2]
[350515307,1737939048161,-500.0,0.00017123,2]
[350515310,1737939048174,-500.0,0.00017123,2]
[350515312,1737939048185,-554.85,0.00017123,2]
[350515313,1737939048195,-500.0,0.00017123,2]
[350515314,1737939048206,-500.0,0.00017123,2]
[350515315,1737939048216,-500.0,0.00017123,2]
[350515316,1737939048227,-500.0,0.00017123,2]
[350515317,1737939048239,-1406.52,0.00017123,2]
[350515318,1737939048249,-500.0,0.00017123,2]
[350515319,1737939048259,-500.0,0.00017259,2]
[350515320,1737939048268,-1953.31,0.0001726,2]
[350515321,1737939048278,-592.82,0.0001726,2]
[350515322,1737939048287,-500.0,0.0001726,2]
[350515323,1737939048297,-817.04,0.0001726,2]
[350515324,1737939048307,-4365.69,0.0001726,2]
[350515325,1737939048317,-500.0,0.0001726,2]
[350515326,1737939048327,-1443.07,0.0001726,2]
[350515327,1737939048337,-500.0,0.0001726,2]
[350515328,1737939048347,-500.0,0.0001726,2]
[350515329,1737939048357,-500.0,0.0001726,2]
[350515330,1737939048367,-554.85,0.0001726,2]
[350515331,1737939048378,-500.0,0.0001726,2]
[350515332,1737939048388,-500.0,0.0001726,2]
[350515344,1737939048399,-500.0,0.0001726,2]
[350515347,1737939048517,-500.0,0.0001726,2]
[350515349,1737939048527,-1406.52,0.0001726,2]
[350515351,1737939048541,-500.0,0.0001726,2]
[350515353,1737939048551,-272.6979941,0.00017396,2]
[350515355,1737939048561,-500.0,0.00017396,2]
[350515357,1737939048571,-500.0,0.00017396,2]
[350515359,1737939048581,-1953.31,0.00017397,2]
[350515361,1737939048591,-592.82,0.00017397,2]
[350515363,1737939048600,-500.0,0.00017397,2]
[350515364,1737939048611,-817.04,0.00017397,2]
[350515366,1737939048620,-4365.69,0.00017397,2]
[350515369,1737939048631,-500.0,0.00017397,2]
[350515371,1737939048641,-1443.07,0.00017397,2]
[350515372,1737939048652,-500.0,0.00017397,2]
[350515374,1737939048662,-500.0,0.00017397,2]
[350515376,1737939048672,-500.0,0.00017397,2]
[350515379,1737939048684,-554.85,0.00017397,2]
[350515381,1737939048694,-500.0,0.00017397,2]
[350515383,1737939048704,-435.57237315,0.00017397,2]
[350515385,1737939048714,-500.0,0.00017397,2]
[350515387,1737939048723,-500.0,0.00017397,2]
[350515389,1737939048733,-1406.52,0.00017397,2]
[350515391,1737939048745,-500.0,0.00017397,2]
[350515392,1737939048756,-151.0,0.000175,2]
[350515394,1737939048765,-1953.31,0.00017534,2]
[350515396,1737939048775,-592.82,0.00017534,2]
[350515398,1737939048786,-500.0,0.00017534,2]
[350515400,1737939048795,-817.04,0.00017534,2]
[350515402,1737939048805,-4365.69,0.00017534,2]
[350515404,1737939048815,-500.0,0.00017534,2]
[350515406,1737939048824,-1443.07,0.00017534,2]
[350515408,1737939048835,-500.0,0.00017534,2]
[350515410,1737939048845,-500.0,0.00017534,2]
[350515412,1737939048855,-500.0,0.00017534,2]
[350515414,1737939048866,-554.85,0.00017534,2]
[350515416,1737939048877,-500.0,0.00017534,2]
[350515418,1737939048887,-500.0,0.00017534,2]
[350515420,1737939048896,-500.0,0.00017534,2]
[350515422,1737939048906,-1406.52,0.00017534,2]
[350515424,1737939048916,-500.0,0.00017534,2]
[350515426,1737939048926,-11500.29,0.000176,2]
[350515428,1737939048936,-500.0,0.00017669,2]
[350515430,1737939048945,-500.0,0.00017669,2]
[350515433,1737939048956,-1953.31,0.00017671,2]
[350515434,1737939048965,-592.82,0.00017671,2]
[350515436,1737939048975,-500.0,0.00017671,2]
[350515439,1737939048989,-817.04,0.00017671,2]
[350515441,1737939048998,-4365.69,0.00017671,2]
[350515443,1737939049009,-500.0,0.00017671,2]
[350515445,1737939049019,-1443.07,0.00017671,2]
[350515447,1737939049030,-500.0,0.00017671,2]
[350515449,1737939049040,-249.56,0.00017671,2]
[350515451,1737939049051,-500.0,0.00017671,2]
[350515453,1737939049061,-554.85,0.00017671,2]
[350515455,1737939049071,-500.0,0.00017671,2]
[350515457,1737939049081,-500.0,0.00017671,2]
[350515459,1737939049091,-500.0,0.00017671,2]
[350515461,1737939049101,-1406.52,0.00017671,2]
[350515463,1737939049112,-500.0,0.00017671,2]
[350515465,1737939049122,-7458.15634357,0.000177,2]
[350515467,1737939049132,-500.0,0.00017807,2]
[350515469,1737939049142,-445.54086909,0.00017807,2]
[350515471,1737939049151,-1953.31,0.00017808,2]
[350515473,1737939049161,-592.82,0.00017808,2]
[350515475,1737939049170,-500.0,0.00017808,2]
[350515477,1737939049180,-817.04,0.00017808,2]
[350515479,1737939049190,-4365.69,0.00017808,2]
[350515481,1737939049200,-500.0,0.00017808,2]
[350515483,1737939049210,-1443.07,0.00017808,2]
[350515485,1737939049219,-500.0,0.00017808,2]
[350515487,1737939049229,-500.0,0.00017808,2]
[350515490,1737939049242,-554.85,0.00017808,2]
[350515492,1737939049251,-500.0,0.00017808,2]
[350515494,1737939049261,-500.0,0.00017808,2]
[350515496,1737939049271,-500.0,0.00017808,2]
[350515498,1737939049280,-1406.52,0.00017808,2]
[350515500,1737939049291,-500.0,0.00017808,2]
[350515502,1737939049300,-354.1278896,0.00017863,2]
[350515504,1737939049310,-354.1278896,0.00017863,2]
[350515506,1737939049320,-212.5080264,0.00017863,2]
[350515508,1737939049330,-165.41267656,0.00017868,2]
[350515510,1737939049339,-350.53878254,0.000179,2]
[350515512,1737939049348,-332.0,0.000179,7]
[350515514,1737939049358,-2343.59,0.000179,2]
[350515516,1737939049368,-151.0,0.000179,2]
[350515518,1737939049377,-1953.31,0.00017945,2]
[350515520,1737939049387,-592.82,0.00017945,2]
[350515522,1737939049396,-500.0,0.00017945,2]
[350515524,1737939049406,-817.04,0.00017945,2]
[350515526,1737939049416,-4365.69,0.00017945,2]
[350515528,1737939049425,-500.0,0.00017945,2]
[350515530,1737939049435,-1443.07,0.00017945,2]
[350515532,1737939049445,-500.0,0.00017945,2]
[350515534,1737939049455,-500.0,0.00017945,2]
[350515536,1737939049468,-554.85,0.00017945,2]
[350515538,1737939049477,-500.0,0.00017945,2]
[350515540,1737939049488,-500.0,0.00017945,2]
[350515542,1737939049498,-500.0,0.00017945,2]
[350515544,1737939049509,-1406.52,0.00017945,2]
[350515546,1737939049519,-410.27,0.00017945,2]
[350515548,1737939049528,-420.0,0.00017962,2]
[350515550,1737939049538,-395.0,0.00018011,2]
[350515552,1737939049549,-500.0,0.00018072,2]
[350515554,1737939049559,-350.53878227,0.00018072,2]
[350515556,1737939049569,-1953.31,0.00018082,2]
[350515558,1737939049579,-592.82,0.00018082,2]
[350515560,1737939049589,-500.0,0.00018082,2]
[350515562,1737939049599,-817.04,0.00018082,2]
[350515564,1737939049609,-4365.69,0.00018082,2]
[350515566,1737939049618,-500.0,0.00018082,2]
[350515568,1737939049628,-1443.07,0.00018082,2]
[350515570,1737939049638,-500.0,0.00018082,2]
[350515572,1737939049647,-500.0,0.00018082,2]
[350515574,1737939049657,-554.85,0.00018082,2]
[350515576,1737939049667,-500.0,0.00018082,2]
[350515578,1737939049677,-500.0,0.00018082,2]
[350515580,1737939049687,-500.0,0.00018082,2]
[350515582,1737939049697,-1406.52,0.00018082,2]
[350515584,1737939049706,-1200.0,0.00018111,2]
[350515586,1737939049716,-500.0,0.00018164,2]
[350515588,1737939049726,-151.0,0.000182,2]
[350515590,1737939049736,-1953.31,0.00018219,2]
[350515591,1737939049746,-592.82,0.00018219,2]
[350515593,1737939049756,-500.0,0.00018219,2]
[350515595,1737939049767,-817.04,0.00018219,2]
[350515597,1737939049776,-4365.69,0.00018219,2]
[350515599,1737939049786,-500.0,0.00018219,2]
[350515601,1737939049796,-1443.07,0.00018219,2]
[350515603,1737939049806,-500.0,0.00018219,2]
[350515605,1737939049815,-500.0,0.00018219,2]
[350515607,1737939049825,-554.85,0.00018219,2]
[350515609,1737939049834,-500.0,0.00018219,2]
[350515611,1737939049844,-500.0,0.00018219,2]
[350515614,1737939049855,-500.0,0.00018219,2]
[350515615,1737939049865,-1406.52,0.00018219,2]
[350515617,1737939049874,-350.53878227,0.00018245,2]
[350515619,1737939049884,-578.24,0.00018355,2]
[350515621,1737939049894,-1953.31,0.00018356,2]
[350515623,1737939049903,-592.82,0.00018356,2]
[350515625,1737939049912,-500.0,0.00018356,2]
[350515628,1737939049922,-817.04,0.00018356,2]
[350515630,1737939049932,-4365.69,0.00018356,2]
[350515632,1737939049941,-500.0,0.00018356,2]
[350515634,1737939049951,-1443.07,0.00018356,2]
[350515635,1737939049960,-500.0,0.00018356,2]
[350515637,1737939049970,-500.0,0.00018356,2]
[350515639,1737939049979,-554.85,0.00018356,2]
[350515641,1737939049990,-500.0,0.00018356,2]
[350515643,1737939050001,-500.0,0.00018356,2]
[350515646,1737939050011,-500.0,0.00018356,2]
[350515648,1737939050020,-1406.52,0.00018356,2]
[350515650,1737939050030,-350.53878227,0.00018417,2]
[350515652,1737939050040,-227.035,0.00018489,2]
[350515654,1737939050049,-1953.31,0.00018493,2]
[350515656,1737939050059,-592.82,0.00018493,2]
[350515658,1737939050069,-500.0,0.00018493,2]
[350515660,1737939050079,-817.04,0.00018493,2]
[350515662,1737939050089,-4365.69,0.00018493,2]
[350515664,1737939050098,-500.0,0.00018493,2]
[350515666,1737939050109,-1443.07,0.00018493,2]
[350515668,1737939050118,-500.0,0.00018493,2]
[350515670,1737939050127,-500.0,0.00018493,2]
[350515672,1737939050136,-554.85,0.00018493,2]
[350515674,1737939050145,-500.0,0.00018493,2]
[350515676,1737939050155,-500.0,0.00018493,2]
[350515678,1737939050164,-244.43377994,0.00018493,2]
[350515680,1737939050173,-1406.52,0.00018493,2]
[350515682,1737939050182,-8017.69,0.000185,2]
[350515684,1737939050191,-350.53878227,0.0001859,2]
[350515686,1737939050200,-151.0,0.000186,2]
[350515688,1737939050210,-161.42,0.000186,2]
[350515690,1737939050219,-161.42,0.000186,2]
[350515692,1737939050228,-1953.31,0.0001863,2]
[350515694,1737939050239,-592.82,0.0001863,2]
[350515695,1737939050248,-500.0,0.0001863,2]
[350515698,1737939050258,-817.04,0.0001863,2]
[350515700,1737939050268,-4365.69,0.0001863,2]
[350515702,1737939050278,-500.0,0.0001863,2]
[350515704,1737939050287,-1443.07,0.0001863,2]
[350515706,1737939050297,-500.0,0.0001863,2]
[350515708,1737939050306,-500.0,0.0001863,2]
[350515710,1737939050315,-554.85,0.0001863,2]
[350515712,1737939050324,-500.0,0.0001863,2]
[350515713,1737939050333,-500.0,0.0001863,2]
[350515716,1737939050343,-1406.52,0.0001863,2]
[350515718,1737939050353,-354.1278896,0.00018741,2]
[350515720,1737939050362,-350.53878227,0.00018762,2]
[350515722,1737939050373,-1953.31,0.00018767,2]
[350515724,1737939050382,-592.82,0.00018767,2]
[350515726,1737939050391,-500.0,0.00018767,2]
[350515728,1737939050400,-817.04,0.00018767,2]
[350515730,1737939050410,-4365.69,0.00018767,2]
[350515731,1737939050419,-500.0,0.00018767,2]
[350515732,1737939050428,-1443.07,0.00018767,2]
[350515733,1737939050438,-464.54,0.00018767,2]
[350515734,1737939050447,-500.0,0.00018767,2]
[350515739,1737939050460,-554.85,0.00018767,2]
[350515741,1737939050497,-500.0,0.00018767,2]
[350515743,1737939050506,-322.16184923,0.00018767,2]
[350515744,1737939050517,-1406.52,0.00018767,2]
[350515747,1737939050526,-500.0,0.00018893,2]
[350515748,1737939050537,-500.0,0.00018893,2]
[350515750,1737939050547,-151.0,0.000189,2]
[350515752,1737939050556,-7794.68823566,0.000189,2]
[350515754,1737939050565,-1953.31,0.00018904,2]
[350515756,1737939050574,-592.82,0.00018904,2]
[350515758,1737939050583,-500.0,0.00018904,2]
[350515760,1737939050593,-817.04,0.00018904,2]
[350515762,1737939050602,-4365.69,0.00018904,2]
[350515764,1737939050611,-500.0,0.00018904,2]
[350515766,1737939050621,-1443.07,0.00018904,2]
[350515768,1737939050631,-500.0,0.00018904,2]
[350515770,1737939050641,-554.85,0.00018904,2]
[350515772,1737939050651,-302.83341011,0.00018904,2]
[350515775,1737939050661,-1406.52,0.00018904,2]
[350515777,1737939050670,-350.53878227,0.00018934,2]
[350515779,1737939050680,-574.12501439,0.00018979,2]
[350515781,1737939050690,-284.39966515,0.00018979,2]
[350515783,1737939050700,-8752.93121916,0.00019,2]
[350515794,1737939050800,-2747.35878084,0.00019,2]
[350515796,1737939050810,-302.96970909,0.00019,2]
[350515798,1737939050819,-1953.31,0.00019041,2]
[350515800,1737939050829,-592.82,0.00019041,2]
[350515802,1737939050839,-253.8,0.00019041,2]
[350515804,1737939050848,-817.04,0.00019041,2]
[350515807,1737939050858,-4365.69,0.00019041,2]
[350515809,1737939050867,-500.0,0.00019041,2]
[350515810,1737939050876,-1443.07,0.00019041,2]
[350515813,1737939050886,-255.226861,0.00019041,2]
[350515815,1737939050896,-255.226861,0.00019041,2]
[350515817,1737939050905,-1238.467163,0.00019041,2]
[350515818,1737939050915,-1238.467163,0.00019041,2]
[350515820,1737939050925,-500.0,0.00019041,2]
[350515822,1737939050934,-554.85,0.00019041,2]
[350515824,1737939050943,-1406.52,0.00019041,2]
[350515826,1737939050953,-9839.00194468,0.00019066,2]
[350515828,1737939050962,-350.53878227,0.00019107,2]
[350515830,1737939050972,-500.0,0.00019178,7]
[350515832,1737939050981,-500.0,0.00019178,2]
[350515834,1737939050992,-505.20468095,0.00019178,2]
[350515836,1737939051002,-1953.31,0.00019178,2]
[350515838,1737939051011,-592.82,0.00019178,2]
[350515840,1737939051020,-817.04,0.00019178,2]
[350515842,1737939051030,-4365.69,0.00019178,2]
[350515844,1737939051039,-500.0,0.00019178,2]
[350515846,1737939051049,-1443.07,0.00019178,2]
[350515848,1737939051058,-558.43,0.00019178,2]
[350515850,1737939051069,-554.85,0.00019178,2]
[350515852,1737939051079,-1406.52,0.00019178,2]
[350515854,1737939051089,-337.452134,0.00019178,2]
[350515856,1737939051099,-302.96970909,0.0001919,2]
[350515858,1737939051108,-641.3235992,0.000192,2]
[350515860,1737939051119,-350.53878227,0.00019279,2]
[350515862,1737939051128,-2000.0,0.000193,2]
[350515865,1737939051138,-151.0,0.000193,2]
[350515867,1737939051150,-1953.31,0.00019315,2]
[350515868,1737939051160,-592.82,0.00019315,2]
[350515870,1737939051170,-817.04,0.00019315,2]
[350515873,1737939051180,-4365.69,0.00019315,2]
[350515875,1737939051189,-500.0,0.00019315,2]
[350515877,1737939051199,-1443.07,0.00019315,2]
[350515879,1737939051209,-151.0,0.00019315,2]
[350515881,1737939051218,-151.0,0.00019315,2]
[350515883,1737939051228,-554.85,0.00019315,2]
[350515885,1737939051239,-1406.52,0.00019315,2]
[350515887,1737939051248,-307.7128455,0.00019315,2]
[350515889,1737939051257,-215.3284382,0.00019315,2]
[350515891,1737939051267,-154.2311524,0.00019315,2]
[350515893,1737939051276,-313.5410801,0.00019315,2]
[350515895,1737939051286,-314.9807476,0.00019315,2]
[350515897,1737939051295,-302.96970909,0.0001938,2]
[350515899,1737939051305,-165.41267656,0.00019399,2]
[350515901,1737939051316,-332.0,0.000194,8]
[350515903,1737939051326,-1000.0,0.00019441,2]
[350515905,1737939051336,-1000.0,0.00019441,2]
[350515907,1737939051346,-350.53878227,0.00019452,2]
[350515909,1737939051356,-1953.31,0.00019452,2]
[350515910,1737939051366,-592.82,0.00019452,2]
[350515912,1737939051377,-817.04,0.00019452,2]
[350515915,1737939051387,-4365.69,0.00019452,2]
[350515917,1737939051397,-175.91,0.00019452,2]
[350515919,1737939051406,-1443.07,0.00019452,2]
[350515921,1737939051416,-554.85,0.00019452,2]
[350515923,1737939051426,-1406.52,0.00019452,2]
[350515925,1737939051435,-302.96970909,0.0001957,2]
[350515927,1737939051445,-1953.50790755,0.00019589,2]
[350515929,1737939051456,-592.87,0.00019589,2]
[350515931,1737939051468,-817.2171582,0.00019589,2]
[350515933,1737939051479,-4365.7316584,0.00019589,2]
[350515935,1737939051489,-1443.1,0.00019589,2]
[350515937,1737939051502,-554.91,0.00019589,2]
[350515939,1737939051511,-1406.69,0.00019589,2]
[350515941,1737939051521,-151.0,0.000196,2]
[350515943,1737939051530,-350.53878227,0.00019624,2]
[350515946,1737939051545,-587.0,0.0001963,2]